bitfinex-derivatives/quotes_ETHF0:USTF0_20241230
["timestamp","ask_amount","ask_price","bid_price","bid_amount"]
[1735557189095,3.2078,3406.6,3406.1,3.2078]
[1735557189300,3.2078,3406.6,3406.5,0.29409]
[1735557189996,3.50189,3406.6,3406.5,1.13939]
[1735557190198,0.29411,3406.3,3406.2,0.29412]
[1735557190500,0.29411,3406.3,3406.2,1.50912]
[1735557190694,0.29411,3406.3,3406.2,1.215]
[1735557194413,3.2078,3406.6,3406.2,1.215]
[1735557195299,0.2941,3406.5,3406.4,0.2941]
[1735557195505,3.2078,3406.6,3406.2,1.215]
[1735557195709,0.29412,3406.2,3406.1,4.4228]
[1735557195899,0.29412,3406.2,3406.1,3.50193]
[1735557196507,0.29412,3406.2,3406.1,3.2078]
[1735557196804,0.29415,3405.9,3405.8,9.22517713]
[1735557197109,0.29416,3405.7,3405.6,9.22517713]
[1735557197303,3.50196,3405.7,3405.6,9.22517713]
[1735557198605,3.2078,3405.7,3405.2,3.2078]
[1735557198805,0.29419,3405.4,3405.3,0.2942]
[1735557201405,3.2078,3405.7,3405.2,3.2078]
[1735557201610,0.29416,3405.8,3405.5,0.29418]
[1735557201911,0.4365,3406.0,3405.2,3.2078]
[1735557202103,0.29418,3405.6,3405.5,0.29418]
[1735557202306,0.29417,3405.7,3405.2,3.2078]
[1735557202506,0.29417,3405.7,3405.5,0.29417]
[1735557202705,0.29417,3405.7,3405.6,0.29417]
[1735557204909,0.4365,3406.0,3405.3,0.4143]
[1735557205106,0.4365,3406.0,3405.5,0.29418]
[1735557205107,0.29418,3405.6,3405.5,0.29418]
[1735557206408,0.29419,3405.4,3405.3,0.70849]
[1735557206801,0.2942,3405.3,3405.2,3.2078]
[1735557207510,0.29419,3405.4,3405.3,0.29419]
[1735557208313,3.2078,3405.7,3405.2,3.2078]
[1735557208508,0.29419,3405.4,3405.3,0.2942]
[1735557208705,3.2078,3405.7,3405.2,3.2078]
[1735557209010,0.29419,3405.4,3405.3,0.29419]
[1735557209811,3.2078,3405.7,3405.2,3.2078]
[1735557210013,0.29419,3405.5,3405.4,0.29419]
[1735557211214,3.2078,3405.7,3405.2,3.2078]
[1735557211407,3.50197,3405.7,3405.6,0.29417]
[1735557211801,3.2078,3405.7,3405.2,3.2078]
[1735557212007,0.29417,3405.6,3405.5,0.29418]
[1735557214311,3.2078,3405.7,3405.2,3.2078]
[1735557214510,3.50197,3405.7,3405.6,0.29417]
[1735557216812,0.29417,3405.7,3405.6,0.29417]
[1735557217614,0.29418,3405.6,3405.5,0.29418]
[1735557217818,0.29417,3405.7,3405.6,0.29416]
[1735557218712,3.2078,3405.8,3405.4,0.2944]
[1735557218923,0.29418,3405.6,3405.5,0.29418]
[1735557220520,3.2078,3405.8,3405.7,0.29416]
[1735557221017,3.50196,3405.8,3405.7,0.29416]
[1735557221407,0.4487,3406.4,3405.7,0.29416]
[1735557221408,3.2078,3406.2,3405.7,1.217]
[1735557221609,3.2078,3406.2,3406.1,0.29413]
[1735557222811,4.58396501,3406.7,3406.6,0.29409]
[1735557223018,3.6458,3406.8,3406.4,2.35957844]
[1735557223211,3.6458,3406.8,3406.7,0.29408]
[1735557223920,3.93987,3406.8,3406.7,0.29408]
[1735557225124,0.29408,3406.7,3406.6,0.29408]
[1735557225819,3.93987,3406.8,3406.7,0.29408]
[1735557226619,3.2078,3406.8,3406.7,0.29408]
[1735557228225,3.2078,3407.2,3406.5,5.6912]
[1735557228424,0.29405,3407.1,3406.5,5.6912]
[1735557228623,0.29405,3407.1,3406.9,0.29405]
[1735557228825,3.2078,3407.2,3406.5,5.6912]
[1735557229025,3.2078,3407.2,3407.0,0.29405]
[1735557229222,0.29404,3407.1,3407.0,0.29405]
[1735557229919,0.29406,3407.0,3406.8,0.29406]
[1735557230225,0.29405,3407.1,3407.0,0.29405]
[1735557230427,0.29405,3407.1,3406.9,0.29406]
[1735557230629,0.29405,3407.1,3406.5,5.6912]
[1735557230828,0.29405,3407.1,3406.9,0.29405]
[1735557231329,3.2078,3407.2,3406.5,5.6912]
[1735557231623,3.50184,3407.2,3407.0,0.29405]
[1735557232027,3.50184,3407.2,3407.1,0.4135]
[1735557232227,3.2078,3407.2,3407.1,0.70754]
[1735557236627,3.50183,3407.2,3407.1,0.4135]
[1735557237829,3.2078,3407.2,3407.1,1.00114]
[1735557238030,3.50183,3407.2,3407.1,0.4135]
[1735557238735,0.29404,3407.1,3407.0,1.216]
[1735557238932,0.29404,3407.1,3407.0,1.51005]
[1735557239739,3.50184,3407.2,3407.1,0.29404]
[1735557241545,3.2078,3407.2,3407.0,1.216]
[1735557241745,3.2078,3407.2,3407.0,1.51005]
[1735557241746,0.29404,3407.1,3407.0,1.51005]
[1735557241947,0.4458,3407.7,3407.6,0.294]
[1735557242450,0.29401,3407.5,3407.4,3.50181]
[1735557242649,0.73979,3407.7,3407.6,0.294]
[1735557243444,0.294,3407.6,3407.5,0.294]
[1735557244239,0.4458,3407.7,3407.4,3.6612]
[1735557244439,3.6304,3408.0,3407.4,3.6612]
[1735557244645,3.2078,3408.0,3407.4,3.6612]
[1735557244846,0.29399,3407.8,3407.7,0.29399]
[1735557245043,3.2078,3408.0,3407.6,2.35957844]
[1735557245235,0.29398,3407.9,3407.8,0.29398]
[1735557245743,0.29399,3407.8,3407.7,0.29399]
[1735557246147,3.2078,3408.0,3407.4,3.6612]
[1735557246346,0.29398,3407.9,3407.8,0.29398]
[1735557247138,3.2078,3408.0,3407.7,0.29399]
[1735557247139,0.29398,3407.8,3407.7,0.29399]
[1735557252757,0.29398,3407.8,3407.4,3.6612]
[1735557252758,0.29398,3407.9,3407.8,0.29398]
[1735557255154,0.29398,3407.9,3407.4,3.6612]
[1735557255459,2.35957844,3407.5,3406.5,0.2936]
[1735557255659,2.35957844,3407.5,3406.8,0.73207]
[1735557255660,3.50186,3406.9,3406.8,0.73207]
[1735557256056,0.29407,3406.8,3406.7,9.66427713]
[1735557256957,0.29409,3406.6,3406.4,0.2941]
[1735557257360,0.2941,3406.4,3406.3,4.4078]
[1735557257556,0.4358,3406.7,3406.1,0.73322]
[1735557257758,0.29412,3406.2,3406.1,1.6391]
[1735557258151,0.29412,3406.2,3406.1,0.4391]
[1735557259357,0.29415,3405.9,3405.8,3.2078]
[1735557263957,0.29419,3405.4,3405.2,6.89719635]
[1735557264156,0.2942,3405.3,3405.2,6.89719635]
[1735557264962,0.4463,3405.8,3405.2,6.89719635]
[1735557265262,0.2942,3405.3,3405.2,6.89719635]
[1735557265461,0.4463,3405.8,3405.1,0.4424]
[1735557265761,0.4463,3405.8,3404.9,4.72317844]
[1735557265762,0.29422,3405.0,3404.9,0.8692]
[1735557266060,0.29423,3404.9,3404.8,1.201]
[1735557266261,0.29424,3404.8,3404.7,7.32359635]
[1735557266461,0.29424,3404.8,3404.7,6.89719635]
[1735557267064,0.29425,3404.7,3404.6,3.2078]
[1735557267263,0.73275,3404.7,3404.6,3.2078]
[1735557271366,0.4385,3404.7,3404.0,1.1503]
[1735557271664,0.2943,3404.2,3404.0,1.15021]
[1735557271864,2.35957844,3404.5,3404.0,0.8559]
[1735557272059,0.2943,3404.1,3404.0,0.4264]
[1735557272263,0.29433,3403.8,3403.7,3.2078]
[1735557274276,0.29432,3403.9,3403.7,3.50213]
[1735557274876,0.29433,3403.8,3403.7,3.2078]
[1735557282478,0.4556,3404.0,3403.5,0.29435]
[1735557282679,0.29434,3403.7,3403.5,0.29435]
[1735557282879,0.29434,3403.7,3403.6,3.2078]
[1735557283179,0.29434,3403.7,3403.6,3.50215]
[1735557286584,0.29434,3403.7,3403.6,3.2078]
[1735557298490,3.2078,3403.9,3403.4,0.38647]
[1735557298689,0.29435,3403.5,3403.4,0.68083]
[1735557299288,0.29435,3403.6,3403.5,0.29435]
[1735557300385,3.2078,3403.9,3403.4,0.38647]
[1735557300587,0.4322,3404.2,3403.5,3.2078]
[1735557300789,0.4322,3404.2,3403.4,0.38647]
[1735557300790,3.2078,3403.9,3403.4,0.38647]
[1735557300984,0.29435,3403.6,3403.5,0.29435]
[1735557301485,0.29435,3403.5,3403.4,0.38647]
[1735557302185,0.29435,3403.5,3403.4,0.68083]
[1735557302891,3.2078,3403.9,3403.4,0.38647]
[1735557303297,0.29435,3403.6,3403.5,0.29435]
[1735557304993,0.29435,3403.5,3403.4,0.38647]
[1735557306692,3.50215,3403.5,3403.4,0.38647]
[1735557306892,3.92455,3403.5,3403.4,0.38647]
[1735557310700,3.50215,3403.5,3403.4,0.38647]
[1735557311294,3.2078,3403.5,3403.4,0.38647]
[1735557311490,2.26170418,3404.0,3403.4,5.38647]
[1735557311694,2.26170418,3404.0,3403.9,5.86169844]
[1735557311892,2.26170418,3404.0,3403.9,7.04469844]
[1735557312599,0.88790418,3404.2,3404.1,0.2943]
[1735557314305,0.88790418,3404.2,3403.9,4.3908]
[1735557314505,0.2943,3404.1,3404.0,9.22517713]
[1735557314993,0.8769,3404.3,3404.0,9.22517713]
[1735557315298,5.56737844,3404.9,3404.3,0.29428]
[1735557315495,0.8769,3404.8,3404.4,0.29427]
[1735557315700,0.29427,3404.5,3404.4,0.29427]
[1735557316199,0.29427,3404.5,3404.3,0.29428]
[1735557316598,0.29428,3404.4,3404.3,0.29428]
[1735557317098,0.29427,3404.5,3404.3,0.29428]
[1735557317299,0.29427,3404.5,3404.4,6.93166174]
[1735557317701,0.29427,3404.5,3404.2,9.67917713]
[1735557317702,3.2078,3404.5,3404.2,5.4112569]
[1735557317897,0.29428,3404.3,3404.2,4.07027768]
[1735557318098,0.29428,3404.3,3404.2,2.01117768]
[1735557318292,0.2943,3404.1,3404.0,10.39082928]
[1735557318497,5.86167844,3404.1,3404.0,10.09882928]
[1735557318697,10.86167844,3404.1,3404.0,10.09882928]
[1735557318899,10.86167844,3404.1,3403.1,0.904]
[1735557318900,10.56737844,3404.1,3403.5,4.62273613]
[1735557319096,3.50215,3403.6,3403.5,4.62273613]
[1735557319699,5.56737844,3404.0,3403.5,4.62273613]
[1735557319897,0.29432,3403.9,3403.5,4.62273613]
[1735557320099,3.7145957,3403.9,3403.6,0.4395]
[1735557320296,3.4202657,3403.9,3403.7,0.29433]
[1735557320601,3.4202657,3403.9,3403.7,0.73493]
[1735557321001,3.4202657,3403.9,3403.8,0.29433]
[1735557321201,3.4202657,3403.9,3403.8,0.71263]
[1735557321402,3.50212,3404.0,3403.8,0.71263]
[1735557321790,3.2078,3404.0,3403.8,0.4183]
[1735557321991,3.50212,3404.0,3403.8,0.4183]
[1735557322399,3.4202657,3404.4,3404.1,0.29429]
[1735557322596,3.4202657,3404.4,3403.9,3.2078]
[1735557322801,0.29429,3404.3,3404.0,0.2943]
[1735557323301,3.4202657,3404.5,3403.9,3.50211]
[1735557323502,0.2943,3404.2,3403.9,3.50211]
[1735557323704,3.4202657,3404.5,3403.9,3.50211]
[1735557323705,3.4202657,3404.5,3403.9,3.2078]
[1735557323890,6.94354345,3404.7,3404.0,4.62273613]
[1735557323891,0.29431,3404.1,3404.0,4.62273613]
[1735557325002,0.2943,3404.2,3404.0,4.62273613]
[1735557325203,2.35957844,3404.7,3403.9,7.83053613]
[1735557325404,0.29431,3404.1,3403.9,8.12485613]
[1735557326399,0.29431,3404.1,3403.9,7.83053613]
[1735557327602,2.35957844,3404.7,3403.9,7.83053613]
[1735557327791,0.29431,3404.1,3403.9,7.83053613]
[1735557330109,0.29431,3404.1,3403.9,8.12485613]
[1735557330299,0.2943,3404.1,3403.9,8.12485613]
[1735557330505,6.6280657,3404.9,3404.4,0.29427]
[1735557330699,0.29425,3404.7,3404.5,1.3189]
[1735557330913,3.7145057,3404.9,3404.5,1.3189]
[1735557331212,3.7145057,3404.9,3404.6,0.29425]
[1735557331705,3.4202657,3404.9,3404.5,1.3189]
[1735557331907,3.7145057,3404.9,3404.6,0.29426]
[1735557332107,0.29424,3404.9,3404.6,0.29426]
[1735557332905,0.29424,3404.9,3404.7,0.29425]
[1735557334609,3.38802262,3405.4,3404.6,6.98231457]
[1735557334806,3.38802262,3405.4,3404.6,4.62273613]
[1735557335010,0.29424,3404.9,3404.7,0.29424]
[1735557335410,0.29423,3404.9,3404.6,4.62273613]
[1735557335816,0.7355,3405.3,3404.6,4.91699613]
[1735557336003,0.29425,3404.7,3404.6,4.62273613]
[1735557336709,0.29426,3404.6,3404.5,1.3189]
[1735557336904,0.29426,3404.6,3404.5,0.4233]
[1735557337106,0.29427,3404.5,3404.4,4.62273613]
[1735557338014,2.35957844,3404.7,3404.1,0.4142]
[1735557338214,0.29429,3404.2,3404.1,0.4142]
[1735557338809,3.50209,3404.2,3404.1,0.4142]
[1735557339616,0.29432,3403.9,3403.8,0.8498]
[1735557340704,0.29433,3403.8,3403.6,4.62273613]
[1735557340908,3.09533844,3404.1,3403.4,8.21700613]
[1735557341116,0.29435,3403.5,3403.4,8.21700613]
[1735557341509,0.29435,3403.5,3403.4,5.00920613]
[1735557342412,0.29435,3403.5,3403.4,0.38647]
[1735557345218,0.29434,3403.7,3403.5,0.29435]
[1735557345514,2.35957844,3404.1,3403.4,3.59427]
[1735557345710,0.29434,3403.7,3403.5,0.29435]
[1735557346613,0.29433,3403.8,3403.6,0.29435]
[1735557347020,0.29435,3403.6,3403.4,3.88863]
[1735557347221,0.29435,3403.6,3403.4,3.59427]
[1735557348022,3.2078,3404.2,3403.4,3.59427]
[1735557348227,0.29435,3403.5,3403.4,3.59427]
[1735557349122,3.50215,3403.5,3403.4,0.38647]
[1735557349621,3.2078,3403.9,3403.4,0.38647]
[1735557349815,0.29435,3403.5,3403.4,0.38647]
[1735557352024,2.65392844,3403.5,3403.4,0.38647]
[1735557353828,5.86172844,3403.5,3403.4,0.38647]
[1735557358330,0.29442,3402.7,3402.6,0.4369]
[1735557359737,0.73591,3403.4,3402.6,0.4369]
[1735557359738,6.6280657,3403.7,3402.6,0.4369]
[1735557359944,6.6280657,3403.7,3403.1,3.2078]
[1735557360135,6.6280657,3403.7,3403.2,0.891]
[1735557360136,0.29436,3403.5,3403.2,0.891]
[1735557360330,6.6280657,3403.7,3403.2,0.891]
[1735557360734,0.29437,3403.3,3403.2,0.891]
[1735557361033,5.56737844,3403.3,3402.3,1.4954]
[1735557361233,0.29442,3402.7,3402.4,0.8607]
[1735557362038,3.2078,3402.9,3402.4,0.8607]
[1735557362244,0.29442,3402.7,3402.4,0.8607]
[1735557362542,0.29442,3402.7,3402.4,1.15515]
[1735557362944,0.29443,3402.6,3402.5,0.4128]
[1735557365646,2.35957844,3402.7,3401.8,3.2078]
[1735557365840,0.29447,3402.2,3402.0,0.4205]
[1735557366340,0.29447,3402.1,3402.0,0.4205]
[1735557366739,5.56737844,3402.4,3401.8,3.2078]
[1735557366937,0.29449,3401.9,3401.8,3.2078]
[1735557367140,0.29449,3401.9,3401.5,0.8891]
[1735557367337,0.2945,3401.8,3401.5,1.18362]
[1735557367742,10.56737844,3402.4,3401.5,1.18362]
[1735557367743,0.29449,3401.9,3401.5,1.18362]
[1735557368851,0.7361,3402.6,3401.5,0.8891]
[1735557368852,3.2078,3402.0,3401.5,0.8891]
[1735557369149,0.29452,3401.6,3401.5,0.8891]
[1735557370350,3.50232,3401.6,3401.5,0.8891]
[1735557370947,3.50232,3401.6,3400.8,1.21]
[1735557370948,3.2078,3401.6,3400.8,1.21]
[1735557371249,0.29457,3401.1,3400.8,0.29459]
[1735557371553,0.29457,3401.1,3400.6,2.0936]
[1735557371753,0.29457,3401.1,3400.7,0.29459]
[1735557372151,2.35957844,3401.5,3400.7,0.29459]
[1735557372350,2.35957844,3401.5,3400.8,0.4352]
[1735557372549,0.29457,3401.1,3400.8,0.4352]
[1735557372747,0.29457,3401.1,3400.8,0.72979]
[1735557373554,0.29456,3401.2,3400.9,0.29458]
[1735557374055,2.35957844,3401.5,3400.8,0.4352]
[1735557374357,2.35957844,3401.5,3400.8,0.72979]
[1735557374358,0.29457,3401.1,3400.8,0.72979]
[1735557374658,0.29457,3401.1,3400.8,0.4352]
[1735557374956,0.29457,3401.1,3400.8,0.72979]
[1735557375157,0.29455,3401.3,3401.1,0.29456]
[1735557375456,3.2078,3401.6,3401.2,0.4234]
[1735557375457,0.29453,3401.5,3401.2,0.4234]
[1735557375656,3.2078,3401.6,3401.3,0.4415]
[1735557375657,0.29454,3401.4,3401.3,0.4415]
[1735557376954,0.29454,3401.3,3401.2,0.4234]
[1735557378253,3.2078,3401.6,3400.9,0.4415]
[1735557378254,2.35957844,3401.5,3400.9,0.4415]
[1735557378454,0.29457,3401.0,3400.9,0.4415]
[1735557381053,0.29456,3401.2,3400.9,0.73607]
[1735557381249,3.2078,3401.6,3400.9,0.4415]
[1735557381552,0.29453,3401.5,3401.3,0.29454]
[1735557381754,0.29453,3401.5,3401.4,0.4505]
[1735557382357,0.29455,3401.2,3401.0,0.29457]
[1735557382656,0.29455,3401.2,3401.1,0.4352]
[1735557382850,3.2078,3401.6,3401.1,0.4352]
[1735557383155,0.29454,3401.4,3401.2,0.29455]
[1735557383749,0.29455,3401.2,3401.1,0.4352]
[1735557385156,2.35957844,3401.5,3400.9,0.4415]
[1735557385361,0.29457,3401.0,3400.9,0.4415]
[1735557385662,0.29458,3400.9,3400.8,0.8704]
[1735557386256,3.09596844,3401.2,3400.5,0.4574]
[1735557386257,6.30376844,3401.2,3400.5,0.4574]
[1735557386460,5.56737844,3401.2,3400.6,0.44]
[1735557386759,0.2946,3400.7,3400.6,0.44]
[1735557389557,3.2078,3401.2,3400.6,0.44]
[1735557389856,0.2946,3400.7,3400.6,0.44]
[1735557390662,0.29459,3400.8,3400.6,0.7346]
[1735557390861,0.2946,3400.7,3400.6,0.44]
[1735557391362,5.56737844,3401.2,3400.6,0.44]
[1735557391564,0.2946,3400.7,3400.6,0.44]
[1735557392564,0.29459,3400.8,3400.6,0.7346]
[1735557392755,0.2946,3400.7,3400.6,0.44]
[1735557393362,0.2946,3400.8,3400.6,0.7346]
[1735557393568,0.2946,3400.7,3400.6,0.44]
[1735557396859,0.29459,3400.8,3400.6,0.44]
[1735557397065,0.29459,3400.8,3400.7,0.7397]
[1735557397271,0.29459,3400.8,3400.7,0.4451]
[1735557397768,3.2078,3401.2,3400.7,0.4451]
[1735557397962,3.2078,3401.2,3400.7,0.73969]
[1735557397963,0.29458,3400.9,3400.7,0.73969]
[1735557398865,3.2078,3401.2,3400.7,0.4451]
[1735557399058,0.29457,3401.0,3400.8,0.29459]
[1735557399260,0.29457,3401.1,3400.9,0.29458]
[1735557399457,0.29456,3401.1,3400.9,0.29458]
[1735557399655,0.29449,3401.9,3401.7,0.29451]
[1735557399864,0.2956,3402.5,3401.8,0.29449]
[1735557400066,0.2956,3402.5,3401.8,3.2078]
[1735557400264,0.29449,3401.9,3401.8,3.2078]
[1735557400967,5.32010501,3402.4,3401.4,0.29453]
[1735557401163,0.29451,3401.7,3401.4,0.29453]
[1735557402558,0.7362,3402.1,3401.3,3.2078]
[1735557402755,0.29453,3401.5,3401.3,0.29454]
[1735557402960,0.29453,3401.5,3401.2,1.56405]
[1735557403163,0.29454,3401.4,3401.2,1.56405]
[1735557403365,2.35957844,3402.0,3401.2,1.2695]
[1735557403569,0.29452,3401.6,3401.4,0.29453]
[1735557403773,0.29453,3401.5,3401.3,3.2078]
[1735557403976,2.35957844,3402.0,3401.4,0.29454]
[1735557404271,2.35957844,3402.0,3401.3,3.2078]
[1735557404272,0.29454,3401.4,3401.3,3.2078]
[1735557404969,0.29453,3401.5,3401.4,0.29453]
[1735557405166,0.7362,3402.1,3401.3,3.2078]
[1735557405362,0.29453,3401.5,3401.4,0.29454]
[1735557406370,0.7362,3402.1,3401.3,3.2078]
[1735557406371,0.29454,3401.4,3401.3,3.50234]
[1735557406871,0.73622,3402.0,3401.3,3.2078]
[1735557407069,0.29453,3401.5,3401.4,0.29453]
[1735557407969,0.29454,3401.4,3401.3,3.2078]
[1735557408377,0.29454,3401.4,3401.3,3.50234]
[1735557408574,0.29454,3401.4,3401.3,3.2078]
[1735557410465,0.29448,3402.1,3401.8,0.29449]
[1735557410669,3.4202657,3402.3,3401.9,0.4488]
[1735557410977,0.2956,3402.6,3401.9,0.4488]
[1735557410978,0.29448,3402.0,3401.9,0.4488]
[1735557413366,2.35957844,3402.4,3401.9,0.4488]
[1735557413571,0.29448,3402.0,3401.9,0.4488]
[1735557415965,3.2078,3402.2,3401.9,0.4488]
[1735557416170,0.29448,3402.0,3401.9,0.4488]
[1735557416676,3.50227,3402.2,3401.9,0.74329]
[1735557416880,0.29448,3402.0,3401.9,0.4488]
[1735557417080,0.29448,3402.1,3401.9,0.4488]
[1735557417380,3.2078,3402.2,3401.9,0.4488]
[1735557417875,0.29448,3402.0,3401.9,0.4488]
[1735557418879,0.29448,3402.1,3401.9,0.4488]
[1735557419075,0.29448,3402.0,3401.9,0.4488]
[1735557419382,0.29448,3402.0,3401.9,0.8991]
[1735557421179,0.29451,3401.8,3401.5,0.29452]
[1735557421380,0.29451,3401.8,3401.5,1.19092]
[1735557421981,0.29453,3401.5,3401.4,4.621218]
[1735557422178,0.29454,3401.3,3401.2,5.506418]
[1735557422482,0.29454,3401.3,3401.2,4.621218]
[1735557423382,0.2957,3401.4,3400.8,0.29458]
[1735557423684,0.29457,3401.1,3400.8,0.29459]
[1735557423984,0.29457,3401.1,3400.9,0.29458]
[1735557424190,0.29457,3401.1,3400.8,0.29458]
[1735557424885,0.2957,3401.4,3400.7,1.3062]
[1735557425082,0.29457,3401.0,3400.8,0.29459]
[1735557425277,0.29458,3400.9,3400.7,1.60079]
[1735557425589,0.29459,3400.8,3400.7,1.3062]
[1735557425779,0.29459,3400.8,3400.7,0.8852]
[1735557428682,3.2078,3401.3,3400.7,0.8852]
[1735557429085,3.2078,3401.3,3401.2,0.29455]
[1735557429383,3.2078,3401.3,3400.8,0.73648]
[1735557429384,3.72279613,3401.6,3400.8,0.73648]
[1735557429590,0.29452,3401.6,3401.3,0.29454]
[1735557429891,0.29452,3401.6,3401.4,1.3148]
[1735557430085,0.29453,3401.5,3401.4,1.3148]
[1735557430287,0.29456,3401.2,3400.9,0.29457]
[1735557430487,3.42827613,3401.7,3400.9,0.29457]
[1735557430488,0.29455,3401.3,3401.0,0.74817]
[1735557431693,0.29455,3401.3,3401.1,0.29456]
[1735557431894,5.56737844,3401.8,3401.0,0.4536]
[1735557432289,0.29455,3401.3,3401.1,0.29456]
[1735557432887,0.29454,3401.4,3401.2,0.29455]
[1735557433085,5.56737844,3401.8,3401.0,0.4536]
[1735557433390,0.29454,3401.3,3401.1,0.29456]
[1735557433793,0.29454,3401.4,3401.1,0.29456]
[1735557433992,0.29455,3401.3,3401.1,0.29456]
[1735557434184,5.56737844,3401.8,3401.0,0.4536]
[1735557434396,2.28431768,3401.9,3401.7,2.35957844]
[1735557434686,0.73265909,3402.2,3402.1,0.29447]
[1735557434886,5.71379356,3402.4,3402.3,0.29446]
[1735557435288,5.71379356,3402.4,3402.3,5.29446]
[1735557435488,4.56269356,3402.4,3402.3,0.29446]
[1735557436289,0.29437,3403.3,3402.8,0.29441]
[1735557436486,0.29437,3403.3,3402.8,3.50221]
[1735557436691,0.2959,3403.5,3402.8,3.2078]
[1735557436892,0.31111,3402.9,3402.8,3.2078]
[1735557439088,0.0167,3402.9,3402.5,4.6143809]
[1735557439298,0.29443,3402.6,3402.5,4.6143809]
[1735557439699,0.29443,3402.6,3402.4,3.2078]
[1735557439700,0.29444,3402.5,3402.4,7.8221809]
[1735557439889,1.17894,3402.5,3402.4,4.6143809]
[1735557440789,1.17894,3402.5,3402.4,3.9275809]
[1735557441191,0.29447,3402.2,3402.0,7.1353809]
[1735557442196,0.29447,3402.1,3402.0,7.1353809]
[1735557442393,0.29447,3402.1,3402.0,3.2078]
[1735557442394,0.74927,3402.1,3402.0,3.2078]
[1735557442593,0.29449,3401.9,3401.6,9.57565979]
[1735557442787,0.29451,3401.7,3401.6,6.92157135]
[1735557443595,0.4337,3401.8,3401.6,6.92157135]
[1735557443993,0.4548,3402.1,3401.6,2.35957844]
[1735557444194,0.4548,3402.1,3402.0,0.29448]
[1735557444597,0.4548,3402.1,3401.9,2.35957844]
[1735557445194,0.74928,3402.1,3401.9,2.35957844]
[1735557445389,0.74928,3402.1,3401.6,2.35957844]
[1735557445594,0.29449,3401.9,3401.6,2.65408844]
[1735557445794,0.29449,3401.9,3401.6,2.65409844]
[1735557445992,0.29449,3402.0,3401.6,2.65409844]
[1735557447001,0.29449,3402.0,3401.6,2.35957844]
[1735557447302,0.4548,3402.1,3401.6,2.35957844]
[1735557447505,0.29449,3402.0,3401.7,0.29451]
[1735557447696,0.4548,3402.1,3401.6,2.65408844]
[1735557447697,0.29449,3401.9,3401.6,2.65408844]
[1735557450102,0.4548,3402.1,3401.6,2.35957844]
[1735557450302,0.29449,3402.0,3401.7,0.29451]
[1735557451299,0.29448,3402.0,3401.7,0.2945]
[1735557451793,0.29448,3402.1,3401.8,0.29449]
[1735557452604,3.2078,3402.3,3401.6,2.35957844]
[1735557452797,0.29449,3401.9,3401.7,0.29451]
[1735557452998,0.29449,3401.9,3401.6,2.65408844]
[1735557453699,3.2078,3402.3,3401.6,2.65408844]
[1735557454005,0.29451,3401.8,3401.5,3.50232]
[1735557454206,0.29451,3401.8,3401.6,0.29452]
[1735557455104,0.2945,3401.9,3401.6,0.29452]
[1735557455302,0.7111,3401.8,3401.6,0.29452]
[1735557456302,0.4166,3401.8,3401.7,0.29451]
[1735557457205,0.29449,3402.0,3401.8,0.2945]
[1735557457506,1.1356,3401.9,3401.6,0.29452]
[1735557457711,0.2945,3401.8,3401.6,0.29452]
[1735557458010,0.8411,3401.9,3401.5,3.50232]
[1735557458195,0.29451,3401.7,3401.5,3.50232]
[1735557458600,0.8411,3401.9,3401.5,3.2078]
[1735557458803,0.29452,3401.6,3401.5,3.2078]
[1735557458999,0.4338,3401.8,3401.4,6.92157135]
[1735557459000,3.6416,3401.8,3401.4,6.92157135]
[1735557459201,0.29453,3401.5,3401.4,6.92157135]
[1735557459401,0.29453,3401.5,3401.4,2.60343295]
[1735557459605,0.29453,3401.5,3401.4,0.54303295]
[1735557459801,0.29454,3401.3,3401.2,9.242436]
[1735557460004,5.86191844,3401.3,3401.2,9.242436]
[1735557460202,5.56737844,3401.3,3400.7,3.2078]
[1735557460417,0.29459,3400.8,3400.7,3.2078]
[1735557461301,0.73641,3401.1,3400.3,9.242436]
[1735557461508,0.29462,3400.4,3400.3,9.242436]
[1735557461705,0.29462,3400.4,3400.2,3.2078]
[1735557462006,0.29463,3400.4,3400.2,3.2078]
[1735557462208,0.29463,3400.3,3400.2,3.2078]
[1735557465200,0.29464,3400.2,3400.1,0.8678]
[1735557466409,0.4427,3400.7,3400.1,0.8678]
[1735557466610,0.29464,3400.2,3400.1,0.8678]
[1735557467011,0.2946,3400.6,3400.1,1.16244]
[1735557467198,0.29462,3400.4,3400.1,1.16244]
[1735557467912,0.29463,3400.3,3400.1,0.8678]
[1735557468212,2.35957844,3400.6,3400.1,0.8678]
[1735557468518,0.29463,3400.4,3400.1,1.16245]
[1735557468711,0.29463,3400.3,3400.1,0.8678]
[1735557469612,2.35957844,3400.6,3400.1,0.8678]
[1735557469911,0.29463,3400.4,3400.1,1.16245]
[1735557470312,2.35957844,3400.6,3400.1,0.8678]
[1735557470506,0.4427,3400.7,3400.2,0.29464]
[1735557470912,0.2946,3400.6,3400.2,0.29464]
[1735557471311,0.4427,3400.7,3400.2,0.29464]
[1735557471521,0.29462,3400.5,3400.2,0.29464]
[1735557473211,0.29462,3400.5,3400.1,0.8678]
[1735557473510,5.56737844,3400.9,3400.2,3.2078]
[1735557473511,3.2078,3400.9,3400.2,3.2078]
[1735557473712,3.2078,3400.9,3400.7,0.29459]
[1735557473912,3.2078,3400.9,3400.8,0.9007]
[1735557474120,3.2078,3400.9,3400.8,1.19529]
[1735557474513,3.50238,3400.9,3400.8,0.9007]
[1735557477220,0.29462,3400.5,3400.2,3.50243]
[1735557477415,0.29462,3400.5,3400.3,0.905]
[1735557477620,0.4167,3400.8,3400.3,0.905]
[1735557478122,0.29462,3400.4,3400.3,0.4571]